[Event "Summer Prague Open-A 2022"]
[Site "Prague"]
[Date "2022.08.07"]
[Round "4.24"]
[White "Kaspi, Alexander"]
[Black "Kowalec, Maciej"]
[Result "1-0"]
[ECO "D35"]
[WhiteElo "2414"]
[BlackElo "2104"]
[Annotator "TA"]
[PlyCount "73"]
[EventDate "2022.08.05"]
[EventType "swiss"]
[EventCountry "CZE"]
[SourceTitle "playchess.com"]
[Source "ChessBase"]
[SourceQuality "1"]
[TimeControl "40/5400+30:1800+30"]

{[%evp 25,73,35,33,37,28,24,35,37,37,41,37,6,47,45,50,-18,0,0,0,0,25,23,15,33,14,17,25,-36,0,0,0,0,0,0,0,0,0,0,166,155,167,156,1004,924,29985,29986,29990,29991,29991,29992]} 1. d4 {[%emt 0:00:16]} d5 {[%emt 0:00:07]} 2. c4 {[%emt 0:00:07]} e6 {[%emt 0:00:34]} 3. Nc3 {[%emt 0:00:08]} Nf6 {[%emt 0:00:07]} 4. cxd5 {[%emt 0:00:12]} exd5 {[%emt 0:00:09]} 5. Bg5 {[%emt 0:00:06]} Be7 {[%emt 0:00:41]} 6. e3 {[%emt 0:00:08]} c6 {[%emt 0:00:37]} 7. Bd3 {[%emt 0:00:08]} O-O {[%emt 0:01:34]} 8. Qc2 {[%emt 0:00:07]} Nbd7 {[%emt 0:01:56]} 9. Nf3 {[%emt 0:00:09]} Re8 {[%emt 0:00:56]} 10. O-O {[%emt 0:00:10]} h6 {[%emt 0:04:59]} 11. Bh4 {[%emt 0:01:08]} Ne4 {[%emt 0:04:47]} 12. Bxe4 {[%emt 0:01:10]} Bxh4 {[%emt 0:00:41]} 13. Bh7+ {[%emt 0:00:09]} Kh8 {[%emt 0:01:01]} 14. Nxh4 {[%emt 0:08:33] D36: Queen's Gambit Declined: Exchange Variation: Main line (5 Bg5 c6 6 Qc2).} Qxh4 {[%emt 0:00:22]} 15. Bd3 {[%emt 0:02:07]} Nf6 {[%emt 0:03:53]} 16. b4 {[%emt 0:06:58] White is slightly better.} Ng4 {[%emt 0:11:42][%csl Gg4][%cal Rh4h2]} 17. h3 {[%emt 0:00:17]} Nf6 {[%emt 0:00:08][%cal Oc8h3] [#]} 18. Bf5 $146 {[%emt 0:09:41]} ({Predecessor:} 18. Ne2 Qg5 19. Nf4 Bd7 20. a4 Nh5 21. Nxh5 Qxh5 22. b5 Rac8 23. Qb2 Qg5 24. bxc6 bxc6 {1-0 (67) Waller,A (2276)-Nitz,M (2134) ICCF email 2017}) 18... Ne4 {[%emt 0:06:57]} 19. Bxe4 {[%emt 0:00:30]} dxe4 {[%emt 0:00:13]} 20. f4 {[%emt 0:00:17] [#]} (20. Ne2 $14) 20... Bxh3 $1 {[%emt 0:11:06]} 21. gxh3 {[%emt 0:12:48] Threatens to win with Kh2.} Qg3+ {[%emt 0:00:09]} 22. Kh1 {[%emt 0:00:05] Hoping for Rae1.} Qxh3+ {[%emt 0:00:05]} 23. Qh2 {[%emt 0:00:15]} Qxe3 {[%emt 0:00:08]} 24. Ne2 {[%emt 0:00:07]} a5 {[%emt 0:01:55]} 25. b5 {[%emt 0:01:52]} cxb5 {[%emt 0:03:18]} 26. Rab1 {[%emt 0:02:13]} (26. f5 $11) 26... b4 {[%emt 0:02:15]} 27. Rb3 {[%emt 0:00:36]} Qd2 {[%emt 0:00:23]} 28. Rg3 {[%emt 0:00:06]} Ra6 {[%emt 0:04:21] And now ...Rg6 would win.} 29. f5 {[%emt 0:01:05][%cal Of5f6] Inhibits Rg6.} Rf6 {[%emt 0:08:10]} (29... Qxa2 30. f6 Qd2 31. fxg7+ Kg8 32. Qh5 $18) 30. Qg2 {[%emt 0:04:55]} Rg8 {[%emt 0:03:24]} (30... Qxa2 31. Rxg7 Qa3 32. Ng3 $1 Kxg7 33. Nh5+ Kf8 34. Qg7+ Ke7 35. Qxf6+ Kd7 36. Qxf7+ Kd8 37. Kg2 $18) 31. Qxe4 {[%emt 0:00:20] Rfg1 is the strong threat.} Rc6 $2 {[%emt 0:06:33]} (31... Qxa2 $11 32. d5 Qa4) 32. Rfg1 $1 $18 {[%emt 0:05:04]} Qxa2 {[%emt 0:04:55] [#]} 33. Nf4 $1 {[%emt 0:11:36] Strongly threatening Qe5.} Rc3 $2 {[%emt 0:08:02] This costs Black the game.} (33... Qc4 $16) 34. R3g2 {[%emt 0:00:47]} Qb3 {[%emt 0:01:42] [#]} 35. f6 $1 {[%emt 0:05:51] White mates.} g6 {[%emt 0:04:22]} 36. Rh2 {[%emt 0:00:33][%cal Rh2h6]} h5 {[%emt 0:00:49] [#]} 37. Qf5 $3 {[%emt 0:15:58][%mdl 512] Weighted Error Value: White=0.10 (very precise) /Black=0.47} 1-0

[Event "Summer Prague Open-A 2022"]
[Site "Prague"]
[Date "2022.08.08"]
[Round "5.2"]
[White "Brejnik, Gustav"]
[Black "Zanan, Evgeny"]
[Result "1-0"]
[ECO "E04"]
[WhiteElo "2292"]
[BlackElo "2521"]
[Annotator "TA"]
[PlyCount "73"]
[EventDate "2022.08.05"]
[EventType "swiss"]
[EventCountry "CZE"]
[SourceTitle "playchess.com"]
[Source "ChessBase"]
[SourceQuality "1"]
[TimeControl "40/5400+30:1800+30"]

{[%evp 11,73,7,27,12,9,12,14,12,22,8,20,14,12,7,17,6,17,13,19,6,6,9,9,10,14,8,53,44,44,32,62,52,94,92,141,148,168,176,187,62,66,63,67,37,97,93,183,199,192,199,271,271,271,271,422,372,619,612,618,608,12837,600,12838,12838]} 1. d4 {[%emt 0:00:02]} Nf6 {[%emt 0:08:53]} 2. c4 {[%emt 0:00:06]} e6 {[%emt 0:00:04]} 3. Nf3 {[%emt 0:00:09]} d5 {[%emt 0:00:05]} 4. g3 {[%emt 0:00:06]} dxc4 {[%emt 0:00:05]} 5. Bg2 {[%emt 0:00:10]} Bb4+ {[%emt 0:00:11]} 6. Bd2 {[%emt 0:02:38]} a5 {[%emt 0:03:51]} 7. a3 {[%emt 0:00:56] E04: Open Catalan: 5 Nf3.} Bxd2+ {[%emt 0:02:42]} 8. Nbxd2 {[%emt 0:01:59]} b5 {[%emt 0:04:26]} 9. b3 {[%emt 0:00:16] The position is equal.} cxb3 {[%emt 0:00:08]} 10. Qxb3 {[%emt 0:00:11]} c6 {[%emt 0:00:05]} 11. O-O {[%emt 0:00:09][%mdl 1024] White has compensation.} O-O {[%emt 0:00:04]} 12. Rfc1 {[%emt 0:00:42]} Bb7 {[%emt 0:01:01]} 13. Qb2 {[%emt 0:00:29]} Qe7 {[%emt 0:05:32]} 14. Ne5 {[%emt 0:08:42]} Nd5 {[%emt 0:18:45]} 15. Ne4 {[%emt 0:22:27] [#]} f6 $146 {[%emt 0:02:20]} ({Predecessor:} 15... Rc8 16. Nc5 Na6 17. Nb3 Qd8 18. e4 Nf6 19. Qc3 c5 20. Nxa5 Bxe4 21. Nec6 Qe8 22. Bxe4 Nxe4 {½-½ (57) Fus,J (2403)-Marn,J (2280) Belgrade 2021}) 16. Nd3 {[%emt 0:01:27]} Nd7 {[%emt 0:00:14]} 17. Nec5 {[%emt 0:01:21]} Nxc5 18. Nxc5 {[%emt 0:02:53]} Rad8 {[%emt 0:26:36]} 19. e4 {[%emt 0:29:09]} Nb6 {[%emt 0:00:36]} 20. a4 {[%emt 0:00:11]} b4 {[%emt 0:08:05]} 21. Bh3 {[%emt 0:03:14]} Bc8 {[%emt 0:03:05]} 22. Nb3 $1 $36 {[%emt 0:03:38][%csl LRa5,LRc6][%mdl 2112] [#] Discovered Attack. Keeping Black busy. White is more active.} e5 {[%emt 0:06:39]} (22... Qa7 $142) 23. Bxc8 $16 {[%emt 0:01:15]} Rxc8 {[%emt 0:00:06]} 24. Nxa5 {[%emt 0:06:52]} Qd6 {[%emt 0:05:32]} 25. Nc4 {[%emt 0:01:59]} ({White should try} 25. Qb3+ $18 Kh8 26. Rab1) 25... Nxc4 $14 {[%emt 0:00:04]} 26. Rxc4 {[%emt 0:00:04]} Rb8 {[%emt 0:00:05]} 27. Rac1 {[%emt 0:02:06]} exd4 {[%emt 0:00:19]} (27... b3 $14) 28. Rxd4 $16 {[%emt 0:00:53]} Qe5 {[%emt 0:01:44] [#]} (28... Qe7 $16) 29. Qb3+ $1 $18 {[%emt 0:00:26]} ({Resist} 29. Rxc6 $6 b3 $14) 29... Kh8 {[%emt 0:00:28]} 30. Rxb4 {[%emt 0:00:05]} f5 {[%emt 0:00:05]} (30... Rbc8 $142 31. Qc3 Qxc3 32. Rxc3 Kg8) 31. exf5 {[%emt 0:01:12] Hoping for Rxb8.} ({Don't play} 31. Rxc6 fxe4 32. Rxb8 Qxb8 33. Qxb8 Rxb8 $18) 31... Rxb4 {[%emt 0:02:25]} 32. Qxb4 {[%emt 0:00:01][%cal Rb4f8] KQR-KQR} Rb8 {[%emt 0:00:06]} (32... Qxf5 {was worth a try.} 33. Qb6 Qg5 34. Rxc6 Qd2) 33. Qc5 {[%emt 0:08:12]} Qe4 {[%emt 0:00:44]} (33... Qxc5 34. Rxc5 Rb1+ 35. Kg2 Rb6) 34. Qd6 {[%emt 0:01:16] White is clearly winning.} Rc8 {[%emt 0:00:19]} 35. f6 {[%emt 0:00:38] And now Qd7 would win.} gxf6 {[%emt 0:00:47]} 36. Qxf6+ {[%emt 0:00:05]} Kg8 {[%emt 0:00:03]} 37. Rc5 {[%emt 0:00:49] Weighted Error Value: White=0.10 (very precise) /Black=0.33} 1-0

[Event "Summer Prague Open-A 2022"]
[Site "Prague"]
[Date "2022.08.08"]
[Round "5.3"]
[White "Mirzoev, Azer"]
[Black "Santagati, Alessandro"]
[Result "1-0"]
[ECO "D38"]
[WhiteElo "2424"]
[BlackElo "2299"]
[Annotator "RC"]
[PlyCount "91"]
[EventDate "2022.08.05"]
[EventType "swiss"]
[EventCountry "CZE"]
[SourceTitle "playchess.com"]
[Source "ChessBase"]
[SourceQuality "1"]
[TimeControl "40/5400+30:1800+30"]

1. d4 {[%emt 0:04:11]} Nf6 {[%emt 0:00:09]} 2. Nf3 {[%emt 0:00:06]} d5 {[%emt 0:00:06]} 3. c4 {[%emt 0:00:05]} e6 {[%emt 0:00:09]} 4. Nc3 {[%emt 0:00:05]} Bb4 {[%emt 0:00:18]} 5. Qa4+ {[%emt 0:00:11]} Nc6 {[%emt 0:00:07]} 6. a3 {[%emt 0:00:09]} Bxc3+ {[%emt 0:01:00]} 7. bxc3 {[%emt 0:00:06]} Ne4 {[%emt 0:00:32]} 8. Qc2 {[%emt 0:00:51]} Na5 {[%emt 0:01:46]} 9. e3 {[%emt 0:00:45]} b6 {[%emt 0:02:22]} 10. cxd5 {[%emt 0:09:46]} exd5 {[%emt 0:00:40]} 11. Bd3 {[%emt 0:00:04]} O-O {[%emt 0:01:38]} 12. c4 {[%emt 0:09:23]} Ba6 {[%emt 0:10:59]} 13. Nd2 {[%emt 0:10:25]} f5 {[%emt 0:09:12]} 14. O-O {[%emt 0:04:56]} Rf6 {[%emt 0:07:35]} 15. cxd5 {[%emt 0:07:15]} Bxd3 {[%emt 0:00:36]} 16. Qxd3 {[%emt 0:00:04]} Qxd5 {[%emt 0:00:46]} 17. f3 {[%emt 0:06:32]} Nc5 {[%emt 0:08:57]} 18. Qc2 {[%emt 0:05:49]} Ncb3 {[%emt 0:05:32]} 19. Nxb3 {[%emt 0:00:51]} Nxb3 {[%emt 0:00:16]} 20. Rb1 {[%emt 0:00:07]} Nxc1 {[%emt 0:00:34]} 21. Rfxc1 {[%emt 0:00:10]} c5 {[%emt 0:07:55]} 22. dxc5 {[%emt 0:01:51]} Rc8 {[%emt 0:00:38]} 23. Rd1 {[%emt 0:05:59]} Qxc5 {[%emt 0:10:30]} 24. Qb3+ {[%emt 0:00:30]} Kh8 {[%emt 0:00:40]} 25. Rd5 {[%emt 0:01:00]} Qe7 {[%emt 0:02:44]} 26. Rbd1 {[%emt 0:00:18]} Re8 {[%emt 0:03:51]} 27. R1d3 {[%emt 0:02:26]} Rc6 {[%emt 0:02:32]} 28. Qb2 {[%emt 0:10:41]} Qc7 {[%emt 0:04:52]} 29. Qb5 {[%emt 0:03:12]} h6 {[%emt 0:02:41]} 30. f4 {[%emt 0:06:09]} Rc1+ {[%emt 0:05:34]} 31. Kf2 {[%emt 0:03:11]} Qc2+ {[%emt 0:01:13]} 32. Rd2 {[%emt 0:04:52]} Qe4 {[%emt 0:00:18]} 33. Qd3 {[%emt 0:00:40]} Qe7 {[%emt 0:01:22]} 34. g3 {[%emt 0:00:12]} Rh1 {[%emt 0:01:37]} 35. Kf3 {[%emt 0:02:19]} Re1 {[%emt 0:00:39]} 36. Re5 {[%emt 0:00:22]} Qf7 {[%emt 0:03:01]} 37. Qd5 {[%emt 0:01:13]} Qh5+ {[%emt 0:00:10]} 38. Kf2 {[%emt 0:00:24]} Rxe5 {[%emt 0:00:48]} 39. fxe5 {[%emt 0:00:08]} Ra1 {[%emt 0:00:55]} 40. h4 {[%emt 0:01:17]} Qg4 {[%emt 0:04:40]} 41. e6 {[%emt 0:31:06]} f4 {[%emt 0:03:47]} 42. exf4 {[%emt 0:00:00]} Rxa3 {[%emt 0:00:50]} 43. Qa8+ {[%emt 0:00:00]} Kh7 {[%emt 0:00:07]} 44. Qe4+ {[%emt 0:00:00]} Qg6 {[%emt 0:00:14]} 45. Qxg6+ {[%emt 0:00:00]} Kxg6 {[%emt 0:00:06]} 46. Re2 {[%emt 0:00:00]} 1-0

[Event "Summer Prague Open-A 2022"]
[Site "Prague"]
[Date "2022.08.08"]
[Round "5.4"]
[White "Kvaloy, Aksel Bu"]
[Black "Kambrath, Yannick"]
[Result "1/2-1/2"]
[ECO "A40"]
[WhiteElo "2289"]
[BlackElo "2401"]
[Annotator "RC"]
[PlyCount "54"]
[EventDate "2022.08.05"]
[EventType "swiss"]
[EventCountry "CZE"]
[SourceTitle "playchess.com"]
[Source "ChessBase"]
[SourceQuality "1"]
[TimeControl "40/5400+30:1800+30"]

1. d4 {[%emt 0:00:22]} Nf6 {[%emt 0:07:36]} 2. c4 {[%emt 0:00:35]} e6 {[%emt 0:01:00]} 3. g3 {[%emt 0:00:33]} d5 {[%emt 0:00:15]} 4. Nf3 {[%emt 0:00:11]} Bb4+ {[%emt 0:00:28]} 5. Bd2 {[%emt 0:00:50]} Be7 {[%emt 0:01:31]} 6. Bg2 {[%emt 0:00:50]} Nbd7 {[%emt 0:00:48]} 7. O-O {[%emt 0:02:41]} O-O {[%emt 0:00:19]} 8. Qc2 {[%emt 0:00:38]} Ne4 {[%emt 0:03:24]} 9. Bf4 {[%emt 0:01:45]} c6 {[%emt 0:01:18]} 10. h4 {[%emt 0:00:24]} b6 {[%emt 0:15:43]} 11. Nbd2 {[%emt 0:18:44]} Nxd2 {[%emt 0:09:15]} 12. Nxd2 {[%emt 0:00:28]} Bb7 {[%emt 0:00:25]} 13. Rfd1 {[%emt 0:08:09]} Rc8 {[%emt 0:04:57]} 14. Rac1 {[%emt 0:06:54]} Bf6 {[%emt 0:12:24]} 15. Nf3 {[%emt 0:12:19]} Re8 {[%emt 0:16:22]} 16. Bg5 {[%emt 0:15:02]} c5 {[%emt 0:03:53]} 17. dxc5 {[%emt 0:03:18]} Rxc5 {[%emt 0:00:56]} 18. Bxf6 {[%emt 0:03:40]} Nxf6 {[%emt 0:00:47]} 19. Qb1 {[%emt 0:07:51]} Qa8 {[%emt 0:06:29]} 20. cxd5 {[%emt 0:00:58]} Rxc1 {[%emt 0:00:31]} 21. Rxc1 {[%emt 0:00:16]} Bxd5 {[%emt 0:00:49]} 22. Ne1 {[%emt 0:01:12]} h6 {[%emt 0:03:56]} 23. Qc2 {[%emt 0:03:38]} Rd8 {[%emt 0:02:17]} 24. b3 {[%emt 0:02:21]} Bxg2 {[%emt 0:01:14]} 25. Nxg2 {[%emt 0:00:04]} Nd5 {[%emt 0:00:13]} 26. Qd2 {[%emt 0:04:30]} Qb8 {[%emt 0:03:23]} 27. Ne3 {[%emt 0:01:54]} Nxe3 {[%emt 0:02:05]} 1/2-1/2

[Event "Summer Prague Open-A 2022"]
[Site "Prague"]
[Date "2022.08.08"]
[Round "5.5"]
[White "Weishaeutel, Moritz"]
[Black "Kulhanek, Tomas"]
[Result "0-1"]
[ECO "E42"]
[WhiteElo "2400"]
[BlackElo "2319"]
[Annotator "RC"]
[PlyCount "126"]
[EventDate "2022.08.05"]
[EventType "swiss"]
[EventCountry "CZE"]
[SourceTitle "playchess.com"]
[Source "ChessBase"]
[SourceQuality "1"]
[TimeControl "40/5400+30:1800+30"]

1. d4 {[%emt 0:00:02]} Nf6 {[%emt 0:00:48]} 2. c4 {[%emt 0:00:06]} e6 {[%emt 0:00:04]} 3. Nc3 {[%emt 0:00:04]} Bb4 {[%emt 0:00:14]} 4. e3 {[%emt 0:00:07]} c5 {[%emt 0:01:27]} 5. Nge2 {[%emt 0:00:24]} cxd4 {[%emt 0:03:10]} 6. exd4 {[%emt 0:00:15]} d5 {[%emt 0:00:51]} 7. c5 {[%emt 0:02:50]} Ne4 {[%emt 0:05:35]} 8. a3 {[%emt 0:04:48]} Bxc3+ {[%emt 0:01:37]} 9. Nxc3 {[%emt 0:00:13]} Nxc3 {[%emt 0:00:07]} 10. bxc3 {[%emt 0:00:04]} b6 {[%emt 0:12:25]} 11. Bb5+ {[%emt 0:11:55]} Bd7 {[%emt 0:00:21]} 12. cxb6 {[%emt 0:00:08]} axb6 {[%emt 0:00:45]} 13. Bd3 {[%emt 0:00:10]} O-O {[%emt 0:06:07]} 14. Qh5 {[%emt 0:05:31]} f5 {[%emt 0:01:34]} 15. O-O {[%emt 0:03:17]} Qc7 {[%emt 0:00:58]} 16. Bd2 {[%emt 0:00:58]} Nc6 {[%emt 0:02:42]} 17. Rfe1 {[%emt 0:06:39]} Rf6 {[%emt 0:08:27]} 18. Qh4 {[%emt 0:07:59]} Na5 {[%emt 0:03:51]} 19. Rac1 {[%emt 0:09:00]} Ba4 {[%emt 0:09:32]} 20. Bf4 {[%emt 0:03:38]} Qd7 {[%emt 0:02:28]} 21. Re3 {[%emt 0:01:17]} Rg6 {[%emt 0:00:35]} 22. Be2 {[%emt 0:02:39]} Nc4 {[%emt 0:02:35]} 23. Rh3 {[%emt 0:00:38]} h6 {[%emt 0:00:15]} 24. Bh5 {[%emt 0:02:05]} Rf6 {[%emt 0:00:55]} 25. Rg3 {[%emt 0:00:11]} Kh8 {[%emt 0:00:47]} 26. Bg6 {[%emt 0:02:14]} Rxg6 {[%emt 0:06:58]} 27. Rxg6 {[%emt 0:00:32]} Qf7 {[%emt 0:01:18]} 28. Rg3 {[%emt 0:00:23]} Kh7 {[%emt 0:00:06]} 29. Be5 {[%emt 0:08:13]} Rg8 {[%emt 0:00:13]} 30. Bf4 {[%emt 0:03:04]} Ra8 {[%emt 0:08:05]} 31. Rh3 {[%emt 0:05:49]} Qf8 {[%emt 0:04:52]} 32. Kh1 {[%emt 0:00:21]} Be8 {[%emt 0:01:19]} 33. Rg1 {[%emt 0:01:17]} Rxa3 {[%emt 0:04:33]} 34. g4 {[%emt 0:01:10]} Bg6 {[%emt 0:01:03]} 35. Rhg3 {[%emt 0:01:50]} Ra7 {[%emt 0:03:24]} 36. h3 {[%emt 0:03:28]} fxg4 {[%emt 0:03:15]} 37. Rxg4 {[%emt 0:00:57]} Bf5 {[%emt 0:01:25]} 38. R4g3 {[%emt 0:00:43]} Rf7 {[%emt 0:02:42]} 39. Kh2 {[%emt 0:01:01]} g6 {[%emt 0:01:24]} 40. Rf3 {[%emt 0:01:53]} Ra7 {[%emt 0:01:03]} 41. Be5 {[%emt 0:36:11]} Nxe5 {[%emt 0:06:58]} 42. dxe5 {[%emt 0:00:00]} Rg7 {[%emt 0:01:04]} 43. Ra1 {[%emt 0:00:00]} g5 {[%emt 0:02:05]} 44. Qd4 {[%emt 0:00:00]} h5 {[%emt 0:04:58]} 45. Qxb6 {[%emt 0:00:00]} g4 {[%emt 0:00:08]} 46. Rf4 {[%emt 0:00:00]} Qe7 {[%emt 0:01:40]} 47. Qe3 {[%emt 0:00:00]} gxh3 {[%emt 0:02:14]} 48. Rfa4 {[%emt 0:00:00]} d4 {[%emt 0:01:48]} 49. Qf3 {[%emt 0:00:00]} Bg4 {[%emt 0:01:32]} 50. Qe4+ {[%emt 0:00:00]} Bf5 {[%emt 0:00:04]} 51. Qf3 {[%emt 0:00:00]} Bg4 {[%emt 0:00:04]} 52. Qf4 {[%emt 0:05:33]} Qb7 {[%emt 0:04:00]} 53. Rg1 {[%emt 0:00:16]} dxc3 {[%emt 0:01:27]} 54. Rb4 {[%emt 0:02:01]} Qf7 {[%emt 0:03:39]} 55. Qg3 {[%emt 0:03:54]} c2 {[%emt 0:00:44]} 56. Rc4 {[%emt 0:00:28]} Bf5 {[%emt 0:00:55]} 57. Qf3 {[%emt 0:02:05]} Rxg1 {[%emt 0:03:12]} 58. Kxg1 {[%emt 0:00:03]} Qg7+ {[%emt 0:01:26]} 59. Kh1 {[%emt 0:00:04]} Kh6 {[%emt 0:00:42]} 60. Rc5 {[%emt 0:01:30]} Qg5 {[%emt 0:00:38]} 61. Qc6 {[%emt 0:00:31]} Qc1+ {[%emt 0:00:38]} 62. Kh2 {[%emt 0:00:05]} Qf4+ {[%emt 0:00:04]} 63. Kg1 {[%emt 0:00:12]} h2+ {[%emt 0:00:25]} 0-1

[Event "Summer Prague Open-A 2022"]
[Site "Prague"]
[Date "2022.08.08"]
[Round "5.6"]
[White "Slampa, Jan"]
[Black "Roubalik, Jakub"]
[Result "1/2-1/2"]
[ECO "C84"]
[WhiteElo "2254"]
[BlackElo "2380"]
[Annotator "RC"]
[PlyCount "34"]
[EventDate "2022.08.05"]
[EventType "swiss"]
[EventCountry "CZE"]
[SourceTitle "playchess.com"]
[Source "ChessBase"]
[SourceQuality "1"]
[TimeControl "40/5400+30:1800+30"]

1. e4 {[%emt 0:00:03]} e5 {[%emt 0:02:23]} 2. Nf3 {[%emt 0:00:06]} Nc6 {[%emt 0:00:08]} 3. Bb5 {[%emt 0:00:13]} a6 {[%emt 0:00:09]} 4. Ba4 {[%emt 0:00:02]} Nf6 {[%emt 0:00:13]} 5. O-O {[%emt 0:00:14]} Be7 {[%emt 0:00:10]} 6. d3 {[%emt 0:00:07]} b5 {[%emt 0:00:38]} 7. Bb3 {[%emt 0:00:03]} d6 {[%emt 0:01:09]} 8. a3 {[%emt 0:02:42]} O-O {[%emt 0:02:17]} 9. Nc3 {[%emt 0:00:16]} Bg4 {[%emt 0:01:38]} 10. Be3 {[%emt 0:00:08]} Nd4 {[%emt 0:04:18]} 11. Bxd4 {[%emt 0:00:09]} exd4 {[%emt 0:00:02]} 12. Nd5 {[%emt 0:00:10]} c5 {[%emt 0:08:46]} 13. h3 {[%emt 0:00:15]} Be6 {[%emt 0:01:52]} 14. Nxf6+ {[%emt 0:00:34]} Bxf6 {[%emt 0:00:07]} 15. Bxe6 {[%emt 0:00:08]} fxe6 {[%emt 0:00:06]} 16. Qe2 {[%emt 0:00:09]} Qc7 {[%emt 0:05:44]} 17. a4 {[%emt 0:01:18]} c4 {[%emt 0:09:36]} 1/2-1/2

[Event "Summer Prague Open-A 2022"]
[Site "Prague"]
[Date "2022.08.08"]
[Round "5.7"]
[White "Fiskaaen, Martin Holten"]
[Black "Sarkar, Justin"]
[Result "0-1"]
[ECO "D38"]
[WhiteElo "1930"]
[BlackElo "2346"]
[Annotator "RC"]
[PlyCount "88"]
[EventDate "2022.08.05"]
[EventType "swiss"]
[EventCountry "CZE"]
[SourceTitle "playchess.com"]
[Source "ChessBase"]
[SourceQuality "1"]
[TimeControl "40/5400+30:1800+30"]

1. d4 {[%emt 0:00:07]} Nf6 {[%emt 0:00:20]} 2. c4 {[%emt 0:00:09]} e6 {[%emt 0:00:42]} 3. Nf3 {[%emt 0:00:12]} d5 {[%emt 0:00:52]} 4. Nc3 {[%emt 0:00:10]} Bb4 {[%emt 0:01:45]} 5. Qa4+ {[%emt 0:00:24]} Nc6 {[%emt 0:00:07]} 6. e3 {[%emt 0:00:16]} O-O {[%emt 0:01:08]} 7. Qc2 {[%emt 0:00:26]} Ne7 {[%emt 0:01:47]} 8. Bd2 {[%emt 0:09:32]} b6 {[%emt 0:02:14]} 9. a3 {[%emt 0:01:04]} Bxc3 {[%emt 0:00:08]} 10. Bxc3 {[%emt 0:00:19]} Bb7 {[%emt 0:02:56]} 11. b3 {[%emt 0:07:44]} dxc4 {[%emt 0:07:04]} 12. bxc4 {[%emt 0:00:22]} Be4 {[%emt 0:00:17]} 13. Qb2 {[%emt 0:06:55]} Bb7 {[%emt 0:00:13]} 14. Nd2 {[%emt 0:05:28]} Nf5 {[%emt 0:02:12]} 15. Bd3 {[%emt 0:04:56]} Nh4 {[%emt 0:06:36]} 16. f3 {[%emt 0:11:40]} Nxg2+ {[%emt 0:33:51]} 17. Kf2 {[%emt 0:00:50]} Nh4 {[%emt 0:02:52]} 18. Rag1 {[%emt 0:03:03]} Nh5 {[%emt 0:07:37]} 19. Be4 {[%emt 0:20:03]} Bxe4 {[%emt 0:01:49]} 20. Nxe4 {[%emt 0:00:09]} Ng6 {[%emt 0:04:53]} 21. Ng3 {[%emt 0:09:57]} Qh4 {[%emt 0:00:53]} 22. f4 {[%emt 0:03:03]} c5 {[%emt 0:03:23]} 23. d5 {[%emt 0:06:59]} exd5 {[%emt 0:00:26]} 24. cxd5 {[%emt 0:00:01]} Rad8 {[%emt 0:05:36]} 25. Rd1 {[%emt 0:00:12]} f5 {[%emt 0:03:55]} 26. d6 {[%emt 0:02:49]} Rf7 {[%emt 0:05:35]} 27. Qb3 {[%emt 0:02:42]} Nf6 {[%emt 0:02:49]} 28. Kg2 {[%emt 0:01:13]} Ne4 {[%emt 0:01:08]} 29. Nxe4 {[%emt 0:02:47]} fxe4 {[%emt 0:00:02]} 30. Qe6 {[%emt 0:00:26]} Qh5 {[%emt 0:01:02]} 31. Rhf1 {[%emt 0:01:17]} Qf5 {[%emt 0:01:15]} 32. Qc4 {[%emt 0:00:40]} Nh4+ {[%emt 0:00:21]} 33. Kh1 {[%emt 0:00:15]} Nf3 {[%emt 0:00:40]} 34. Rf2 {[%emt 0:00:35]} Kf8 {[%emt 0:00:28]} 35. Rg2 {[%emt 0:00:29]} g6 {[%emt 0:00:29]} 36. Ba1 {[%emt 0:00:30]} Rfd7 {[%emt 0:00:29]} 37. Qc3 {[%emt 0:00:30]} Rxd6 {[%emt 0:00:20]} 38. Qg7+ {[%emt 0:00:34]} Ke8 {[%emt 0:00:01]} 39. Rf1 {[%emt 0:00:33]} Rd1 {[%emt 0:00:22]} 40. Rgf2 {[%emt 0:00:27]} Qf7 {[%emt 0:00:59]} 41. Qc3 {[%emt 0:10:34]} R8d2 {[%emt 0:03:12]} 42. Kg2 {[%emt 0:15:13]} Rxf1 {[%emt 0:00:49]} 43. Kxf1 {[%emt 0:00:31]} Rd1+ {[%emt 0:00:11]} 44. Ke2 {[%emt 0:01:07]} Re1+ {[%emt 0:00:06]} 0-1